bitfinex-derivatives/quotes_BTCF0:USTF0_20240903
["timestamp","ask_amount","ask_price","bid_price","bid_amount"]
[1725352295521,0.9424,59055.0,59046.0,0.05468265]
[1725352295728,0.3616,59047.0,59045.0,0.14608265]
[1725352295929,0.3616,59047.0,59045.0,0.21383065]
[1725352295930,0.0008,59046.0,59045.0,0.21383065]
[1725352296224,0.3608,59047.0,59046.0,0.067747]
[1725352296626,0.3608,59047.0,59046.0,0.068747]
[1725352297234,0.3608,59047.0,59046.0,0.067747]
[1725352297422,0.3618,59047.0,59046.0,0.067747]
[1725352297827,0.3628,59047.0,59046.0,0.068747]
[1725352299027,0.4528,59047.0,59046.0,0.068747]
[1725352299539,0.4575369,59047.0,59046.0,0.068747]
[1725352304633,0.5875369,59047.0,59046.0,0.068747]
[1725352310238,0.6552829,59047.0,59046.0,0.068747]
[1725352310644,0.6552829,59047.0,59046.0,0.001]
[1725352312043,0.067747,59046.0,59042.0,0.067751]
[1725352312229,0.09,59043.0,59042.0,0.067751]
[1725352312434,0.2208,59043.0,59042.0,0.067751]
[1725352313836,0.2228,59043.0,59042.0,0.067751]
[1725352314545,0.29055,59043.0,59042.0,0.067751]
[1725352314743,0.29055,59043.0,59038.0,0.067756]
[1725352315045,0.4516,59039.0,59038.0,0.067756]
[1725352315438,0.54507013,59039.0,59038.0,0.067756]
[1725352317837,0.45507013,59039.0,59038.0,0.067756]
[1725352318038,0.40307901,59039.0,59038.0,0.067756]
[1725352319147,0.04227901,59039.0,59038.0,0.067756]
[1725352319344,0.40307901,59039.0,59038.0,0.067756]
[1725352321440,0.53763661,59039.0,59038.0,0.067756]
[1725352322340,0.40307901,59039.0,59038.0,0.067756]
[1725352323541,0.3616,59039.0,59038.0,0.067756]
[1725352323935,0.3616,59039.0,59038.0,0.157756]
[1725352325046,0.3616,59039.0,59038.0,0.225512]
[1725352325748,0.3616,59039.0,59038.0,0.733672]
[1725352325941,0.3616,59039.0,59038.0,0.225512]
[1725352326137,0.3616,59039.0,59038.0,0.08460137]
[1725352326345,0.4916,59039.0,59038.0,0.067756]
[1725352327149,0.4916,59039.0,59038.0,0.157756]
[1725352327542,0.3676,59039.0,59038.0,0.157756]
[1725352328752,0.3646,59039.0,59038.0,0.157756]
[1725352328951,0.3666,59039.0,59038.0,0.157756]
[1725352329147,0.3636,59039.0,59038.0,0.157756]
[1725352329350,0.3656,59039.0,59038.0,0.157756]
[1725352330451,0.3656,59039.0,59038.0,0.204456]
[1725352331250,0.3656,59039.0,59038.0,0.712616]
[1725352332540,0.3646,59039.0,59038.0,0.712616]
[1725352333048,0.3636,59039.0,59038.0,0.712616]
[1725352333647,0.3636,59039.0,59038.0,1.380372]
[1725352333648,0.11793319,59039.0,59038.0,1.380372]
[1725352333854,0.11793319,59041.0,59039.0,0.067755]
[1725352334160,0.13478079,59045.0,59041.0,0.067752]
[1725352334161,0.11793319,59042.0,59041.0,0.067752]
[1725352334350,0.11793319,59042.0,59041.0,0.157752]
[1725352334544,0.11793319,59042.0,59041.0,1.807752]
[1725352334748,0.11793319,59042.0,59041.0,0.157752]
[1725352335153,0.22793319,59042.0,59041.0,0.157752]
[1725352335860,0.111,59042.0,59041.0,0.157752]
[1725352336864,0.112,59042.0,59041.0,0.157752]
[1725352337062,0.112,59042.0,59041.0,0.665872]
[1725352337959,0.112,59042.0,59041.0,0.157752]
[1725352338652,0.112,59042.0,59041.0,0.28681725]
[1725352341565,0.112,59042.0,59041.0,0.37145225]
[1725352343956,0.112,59042.0,59041.0,0.37145233]
[1725352344362,0.11343,59042.0,59041.0,0.37145233]
[1725352345056,0.11343,59042.0,59041.0,0.067752]
[1725352345360,0.11343,59042.0,59041.0,0.13546036]
[1725352345563,0.15903,59042.0,59041.0,0.067752]
[1725352350361,0.15903,59042.0,59040.0,0.06770836]
[1725352350659,0.068152,59041.0,59040.0,0.06770836]
[1725352350863,0.1104,59041.0,59039.0,0.06770836]
[1725352351067,0.0004,59040.0,59039.0,0.06770836]
[1725352351371,0.11,59040.0,59039.0,0.06770836]
[1725352351555,0.177754,59040.0,59038.0,0.05157756]
[1725352351765,0.86932,59039.0,59038.0,0.0008]
[1725352352063,0.97932,59039.0,59038.0,0.0008]
[1725352352262,1.71483,59039.0,59038.0,0.0008]
[1725352352766,1.71383,59039.0,59038.0,0.0008]
[1725352353268,1.71583,59039.0,59038.0,0.0008]
[1725352353465,1.8093237,59039.0,59038.0,0.0008]
[1725352353657,1.960701,59039.0,59038.0,0.0008]
[1725352353858,1.8093237,59039.0,59038.0,0.0008]
[1725352354054,2.0423237,59039.0,59038.0,0.0008]
[1725352354566,2.19390539,59039.0,59038.0,0.0008]
[1725352354870,2.12615039,59039.0,59038.0,0.0008]
[1725352356468,2.12615031,59039.0,59038.0,0.0008]
[1725352356673,1.97456862,59039.0,59038.0,0.0008]
[1725352357271,2.12615031,59039.0,59038.0,0.0008]
[1725352357661,1.97456862,59039.0,59038.0,0.0008]
[1725352359368,2.33736862,59039.0,59038.0,0.0008]
[1725352359672,2.28536443,59039.0,59038.0,0.0008]
[1725352360063,2.39813507,59039.0,59038.0,0.0008]
[1725352360558,2.243875,59039.0,59038.0,0.0008]
[1725352361568,1.643875,59039.0,59038.0,0.0008]
[1725352361872,1.135755,59039.0,59038.0,0.0008]
[1725352362263,1.135755,59039.0,59038.0,0.068556]
[1725352362665,1.068,59039.0,59038.0,0.068556]
[1725352363171,0.838,59039.0,59038.0,0.068556]
[1725352363371,1.068,59039.0,59038.0,0.068556]
[1725352367670,0.3464,59039.0,59038.0,0.068556]
[1725352367866,0.7072,59039.0,59038.0,0.068556]
[1725352368470,0.3464,59039.0,59038.0,0.068556]
[1725352368670,0.7072,59039.0,59038.0,0.068556]
[1725352370386,0.3464,59039.0,59038.0,0.068556]
[1725352370563,0.7072,59039.0,59038.0,0.068556]
[1725352370769,0.7072,59039.0,59038.0,0.0008]
[1725352370770,0.866155,59039.0,59038.0,0.0008]
[1725352372372,0.636155,59039.0,59038.0,0.0008]
[1725352372579,0.873155,59039.0,59038.0,0.0008]
[1725352372974,0.881155,59039.0,59038.0,0.0008]
[1725352374076,0.649955,59039.0,59038.0,0.0008]
[1725352375682,0.74344186,59039.0,59038.0,0.0008]
[1725352375879,0.92846298,59039.0,59038.0,0.0008]
[1725352376479,0.98922507,59039.0,59038.0,0.0008]
[1725352376877,0.80420395,59039.0,59038.0,0.0008]
[1725352377181,0.69144143,59039.0,59038.0,0.0008]
[1725352377575,0.74344186,59039.0,59038.0,0.0008]
[1725352378074,0.69144143,59039.0,59038.0,0.0008]
[1725352378682,0.74344186,59039.0,59038.0,0.0008]
[1725352381075,0.38264186,59039.0,59038.0,0.0008]
[1725352381380,1.10424186,59039.0,59038.0,0.0008]
[1725352382671,1.1650038,59039.0,59038.0,0.0008]
[1725352383280,1.0750038,59039.0,59038.0,0.0008]
[1725352383475,1.1650038,59039.0,59038.0,0.0008]
[1725352383776,0.943,59039.0,59038.0,0.068556]
[1725352386680,0.5822,59039.0,59038.0,0.068556]
[1725352387275,1.758115,59039.0,59033.0,0.05078822]
[1725352387489,0.4508,59034.0,59028.0,0.05078822]
[1725352387680,0.4508,59034.0,59024.0,0.06770342]
[1725352387681,0.067767,59028.0,59025.0,0.05078822]
[1725352387883,0.067767,59028.0,59024.0,0.05078822]
[1725352387884,0.09,59026.0,59024.0,0.05078822]
[1725352388093,0.2,59026.0,59024.0,0.05078822]
[1725352388289,0.157771,59025.0,59022.0,0.06770342]
[1725352388599,0.4508,59023.0,59021.0,0.06770342]
[1725352388785,0.09,59022.0,59021.0,0.06770342]
[1725352389387,0.09,59022.0,59020.0,0.06770342]
[1725352390581,0.09,59022.0,59018.0,0.165879]
[1725352390788,0.09,59019.0,59018.0,0.0981]
[1725352391997,0.091,59019.0,59018.0,0.0981]
[1725352392293,0.091,59019.0,59017.0,0.06778]
[1725352392491,0.3608,59018.0,59017.0,0.06778]
[1725352394797,0.3618,59018.0,59017.0,0.06778]
[1725352394986,0.3636,59018.0,59017.0,0.06778]
[1725352395293,0.3636,59018.0,59017.0,0.15778]
[1725352395696,0.0028,59018.0,59017.0,1.31686561]
[1725352395891,0.3608,59031.0,59023.0,0.067773]
[1725352396189,0.3608,59031.0,59023.0,1.026853]
[1725352396190,0.3647,59031.0,59023.0,1.026853]
[1725352396392,0.3647,59031.0,59023.0,1.626853]
[1725352397584,0.4547,59031.0,59023.0,1.626853]
[1725352397990,0.3647,59031.0,59023.0,1.766853]
[1725352399189,0.3647,59031.0,59023.0,1.536853]
[1725352399389,0.3647,59031.0,59023.0,1.766853]
[1725352400487,0.23,59030.0,59023.0,0.428573]
[1725352400689,0.12025403,59024.0,59023.0,0.428573]
[1725352400889,0.12025403,59024.0,59023.0,0.49621948]
[1725352401089,0.12025403,59024.0,59023.0,0.428573]
[1725352401704,0.00025403,59024.0,59023.0,0.428573]
[1725352402499,0.00025403,59024.0,59023.0,0.49621855]
[1725352402697,0.00025403,59024.0,59023.0,0.428573]
[1725352405593,0.04174184,59024.0,59023.0,0.428573]
[1725352407502,0.04174184,59024.0,59023.0,0.067773]
[1725352408302,0.04174184,59024.0,59023.0,0.297773]
[1725352408499,0.09374396,59024.0,59023.0,1.473826]
[1725352408898,0.04174184,59024.0,59023.0,1.473826]
[1725352409100,0.00025403,59024.0,59023.0,1.473826]
[1725352409301,0.09374396,59024.0,59023.0,3.123826]
[1725352409707,0.04174184,59024.0,59023.0,3.123826]
[1725352412210,0.1518974,59024.0,59023.0,3.123826]
[1725352412805,0.20389324,59024.0,59023.0,3.123826]
[1725352413007,0.1518974,59024.0,59023.0,3.123826]
[1725352413205,0.24538105,59024.0,59023.0,3.123826]
[1725352413406,0.09373768,59024.0,59023.0,3.123826]
[1725352413608,0.00025403,59024.0,59023.0,3.25291789]
[1725352413802,0.16881066,59027.0,59026.0,0.06777]
[1725352414004,0.16881066,59027.0,59026.0,1.25174312]
[1725352414209,0.16881066,59027.0,59026.0,1.85174312]
[1725352415109,0.17281066,59027.0,59026.0,1.85174312]
[1725352415309,0.17281066,59027.0,59026.0,1.91951312]
[1725352415810,0.17281066,59027.0,59026.0,1.60498]
[1725352416021,0.17281066,59027.0,59026.0,1.47418]
[1725352417608,0.17281066,59027.0,59026.0,1.24418]
[1725352421933,0.17281066,59027.0,59026.0,1.33418]
[1725352422432,0.004,59027.0,59026.0,1.41871312]
[1725352423437,0.004,59027.0,59026.0,1.54780722]
[1725352424228,0.004,59027.0,59026.0,1.4632741]
[1725352426435,0.004,59027.0,59026.0,0.8632741]
[1725352427133,0.004,59027.0,59026.0,1.4632741]
[1725352427332,0.004,59027.0,59026.0,1.3732741]
[1725352427534,0.004,59027.0,59026.0,1.4632741]
[1725352428231,0.004,59027.0,59026.0,0.8632741]
[1725352428537,0.004,59027.0,59026.0,0.3550341]
[1725352428734,0.004,59027.0,59026.0,0.22594]
[1725352429739,0.17247847,59027.0,59026.0,0.22594]
[1725352430140,0.09748036,59027.0,59026.0,0.15817]
[1725352430438,0.26595883,59027.0,59026.0,0.15817]
[1725352430636,0.26595883,59027.0,59026.0,0.06817]
[1725352432340,0.09748036,59027.0,59026.0,0.06817]
[1725352432538,0.24929968,59027.0,59026.0,0.06817]
[1725352434435,0.09748341,59027.0,59026.0,0.06817]
[1725352434931,0.15587665,59027.0,59026.0,0.06817]
[1725352435237,0.09748341,59027.0,59026.0,0.06817]
[1725352435736,0.004,59027.0,59026.0,0.19726826]
[1725352440646,0.004,59027.0,59026.0,0.72735991]
[1725352441033,0.004,59027.0,59026.0,0.72751341]
[1725352441253,0.004,59027.0,59026.0,0.67303826]
[1725352442540,0.004,59027.0,59026.0,0.76303826]
[1725352442745,0.004,59027.0,59026.0,0.86470799]
[1725352442945,0.004,59027.0,59026.0,0.86469991]
[1725352443144,0.004,59027.0,59026.0,0.76303018]
[1725352443450,0.004,59027.0,59026.0,0.79693005]
[1725352443748,0.004,59027.0,59026.0,0.51897]
[1725352445237,0.12215098,59027.0,59026.0,0.42897]
[1725352445754,0.004,59027.0,59026.0,0.42897]
[1725352446249,0.12215098,59027.0,59026.0,0.42897]
[1725352446739,0.12358098,59027.0,59026.0,0.42897]
[1725352448244,0.14045969,59027.0,59026.0,0.42897]
[1725352448442,0.18194389,59027.0,59026.0,0.42897]
[1725352450851,0.00543,59027.0,59026.0,0.55806785]
[1725352452147,0.00543,59027.0,59026.0,0.19726785]
[1725352452552,0.00543,59027.0,59026.0,0.19727151]
[1725352453253,1.042238,59027.0,59026.0,0.12950151]
[1725352453453,1.042238,59027.0,59026.0,0.0004]
[1725352453454,1.642238,59027.0,59026.0,0.0004]
[1725352453656,1.642238,59027.0,59026.0,0.05124185]
[1725352453855,1.688838,59027.0,59026.0,0.05124185]
[1725352454152,1.688838,59027.0,59026.0,0.0004]
[1725352459964,1.180598,59027.0,59026.0,0.0004]
[1725352460155,1.688838,59027.0,59026.0,0.0004]
[1725352462260,0.067774,59022.0,59021.0,0.00025403]
[1725352462457,0.638974,59022.0,59021.0,0.00025403]
[1725352462662,1.747254,59022.0,59021.0,0.00025403]
[1725352463965,1.657254,59022.0,59021.0,0.00025403]
[1725352464274,1.747254,59022.0,59021.0,0.00025403]
[1725352464457,1.67948,59022.0,59021.0,0.00025403]
[1725352464757,1.07948,59022.0,59021.0,0.00025403]
[1725352465769,1.17298677,59022.0,59021.0,0.00025403]
[1725352466150,1.77298677,59022.0,59021.0,0.00025403]
[1725352466356,1.76657527,59022.0,59021.0,0.00025403]
[1725352466554,1.16657527,59022.0,59021.0,0.06802903]
[1725352466761,1.37049412,59022.0,59021.0,0.06802903]
[1725352467751,1.37049256,59022.0,59021.0,0.06802903]
[1725352468958,0.86221256,59022.0,59021.0,0.06802903]
[1725352469154,1.37049256,59022.0,59021.0,0.06802903]
[1725352469761,0.8668737,59022.0,59021.0,0.06802903]
[1725352469956,1.3751537,59022.0,59021.0,0.06802903]
[1725352470160,0.8668737,59022.0,59021.0,0.06802903]
[1725352470463,1.3751537,59022.0,59021.0,0.06802903]
[1725352470665,0.8668737,59022.0,59021.0,0.06802903]
[1725352470966,1.3751537,59022.0,59021.0,0.06802903]
[1725352471758,1.3821535,59022.0,59021.0,0.06802903]
[1725352472061,1.41448807,59022.0,59021.0,0.00025403]
[1725352472262,0.067783,59014.0,59013.0,0.0039]
[1725352472561,0.067783,59014.0,58997.0,0.0495]
[1725352472562,0.72236738,59014.0,59005.0,0.0039]
[1725352472755,0.72236738,59014.0,58997.0,0.0495]
[1725352472756,0.4508,59006.0,59000.0,0.0039]
[1725352472957,0.09,59001.0,59000.0,0.067799]
[1725352473159,0.4508,59001.0,58997.0,0.0495]
[1725352473455,0.09,58998.0,58996.0,0.067804]
[1725352473761,0.09,58998.0,58991.0,0.05084185]
[1725352473762,0.067806,58995.0,58991.0,0.05084185]
[1725352473959,0.4508,58992.0,58990.0,0.05084185]
[1725352474158,0.4508,58992.0,58988.0,0.067812]
[1725352474363,0.09,58989.0,58988.0,0.067812]
[1725352475262,0.09,58989.0,58983.0,0.0039]
[1725352475470,0.3608,58984.0,58978.0,0.0039]
[1725352475666,0.3608,58984.0,58978.0,0.067825]
[1725352475667,0.09,58979.0,58978.0,0.067825]
[1725352475855,0.09,58979.0,58977.0,0.0494]
[1725352475856,0.3608,58984.0,58977.0,0.0494]
[1725352476068,0.3608,58984.0,58979.0,0.036823]
[1725352476460,0.23,58980.0,58979.0,0.036823]
[1725352477871,0.23,58980.0,58974.0,0.095]
[1725352478072,0.3608,58984.0,58974.0,0.095]
[1725352478073,0.23,58975.0,58974.0,0.095]
[1725352478367,0.2339,58982.0,58974.0,0.325]
[1725352478668,0.23,58982.0,58974.0,0.325]
[1725352478872,0.23,58982.0,58974.0,0.095]
[1725352479064,0.3608,58984.0,58978.0,0.067825]
[1725352479265,0.23,58979.0,58978.0,0.067825]
[1725352479971,0.2308,58979.0,58978.0,0.067825]
[1725352481274,0.0008,58979.0,58978.0,0.067825]
[1725352481664,0.0008,58979.0,58978.0,1.717825]
[1725352481865,0.0008,58979.0,58978.0,1.947825]
[1725352484465,0.0008,58979.0,58978.0,0.297825]
[1725352485165,0.0039,58986.0,58985.0,0.067817]
[1725352485373,0.23,58986.0,58985.0,0.067817]
[1725352485670,0.23,58986.0,58977.0,0.0039]
[1725352485671,0.35,58986.0,58978.0,1.6508]
[1725352485879,0.23,58979.0,58978.0,0.0008]
[1725352486076,0.23,58979.0,58978.0,0.068625]
[1725352486374,0.3608,58983.0,58978.0,0.068625]
[1725352486375,0.23,58982.0,58978.0,0.068625]
[1725352486576,0.23,58979.0,58978.0,0.068625]
[1725352486878,0.34,58979.0,58978.0,0.068625]
[1725352487268,0.23,58979.0,58978.0,0.068625]
[1725352488878,0.35,58979.0,58978.0,0.0008]
[1725352489382,0.417824,58979.0,58978.0,0.0008]
[1725352489575,0.417824,58979.0,58970.0,0.0039]
[1725352489576,0.067831,58973.0,58970.0,0.0039]
[1725352489875,0.5908,58971.0,58966.0,0.067837]
[1725352490180,0.23,58967.0,58961.0,0.067844]
[1725352490378,0.23,58964.0,58961.0,0.067844]
[1725352490781,0.23,58967.0,58960.0,0.23]
[1725352490981,0.23,58967.0,58965.0,0.06784]
[1725352491571,0.23,58967.0,58960.0,0.067845]
[1725352491777,0.23,58961.0,58960.0,0.067845]
[1725352492583,0.3608,58966.0,58958.0,0.5908]
[1725352492784,0.3608,58966.0,58964.0,0.06784]
[1725352494771,0.4808,58966.0,58964.0,0.06784]
[1725352494984,0.4808,58966.0,58965.0,0.06784]
[1725352496983,0.4808,58966.0,58958.0,0.41164185]
[1725352497283,0.23,58960.0,58959.0,0.05046949]
[1725352497487,0.067847,58959.0,58954.0,0.06778618]
[1725352497687,0.23,58955.0,58953.0,0.05047371]
[1725352497879,0.23,58955.0,58954.0,0.067852]
[1725352498884,0.3608,58956.0,58955.0,0.067851]
[1725352499380,0.0039,58960.0,58959.0,0.067847]
[1725352499586,0.00025426,58962.0,58961.0,0.067844]
[1725352499782,0.00025426,58962.0,58961.0,0.297844]
[1725352500083,0.00025426,58962.0,58961.0,0.067844]
[1725352500881,0.35025426,58962.0,58961.0,0.067844]
[1725352501485,0.35025426,58962.0,58959.0,0.05047371]
[1725352501681,0.3616,58960.0,58959.0,0.05047371]
[1725352501879,0.4816,58960.0,58958.0,0.05047371]
[1725352502083,0.2308,58959.0,58958.0,0.05047371]
[1725352502282,0.3108,58959.0,58953.0,0.08472929]
[1725352502580,0.0008,58954.0,58953.0,0.15258329]
[1725352502789,0.0008,58954.0,58953.0,0.067854]
[1725352503285,0.0008,58954.0,58953.0,0.19711182]
[1725352504686,0.0008,58954.0,58953.0,1.84711182]
[1725352505487,0.0008,58954.0,58953.0,0.28156572]
[1725352505893,0.0008,58954.0,58953.0,0.1523079]
[1725352506193,0.0008,58954.0,58953.0,0.067854]
[1725352507585,0.1208,58954.0,58953.0,0.067854]
[1725352509885,0.1208,58954.0,58951.0,0.0844539]
[1725352510085,0.0008,58952.0,58951.0,0.0844539]
[1725352510286,0.1208,58952.0,58951.0,0.2137171]
[1725352510483,0.0008,58952.0,58951.0,0.2815731]
[1725352510797,0.0008,58952.0,58951.0,0.1971192]
[1725352511389,0.0008,58952.0,58951.0,0.4271192]
[1725352511785,0.0008,58952.0,58951.0,0.52878907]
[1725352511988,0.0039,58959.0,58958.0,0.067848]
[1725352512190,0.3608,58960.0,58948.0,0.3608]
[1725352512191,0.3608,58960.0,58959.0,0.067847]
[1725352512386,0.00025426,58962.0,58961.0,0.067844]
[1725352512693,0.00025426,58962.0,58961.0,1.717844]
[1725352513300,0.23025426,58962.0,58961.0,1.717844]
[1725352514089,0.23025426,58962.0,58961.0,0.067844]
[1725352514498,0.00025426,58962.0,58961.0,0.067844]
[1725352516191,0.00025426,58962.0,58961.0,0.15225418]
[1725352517289,0.00025426,58962.0,58961.0,0.28150027]
[1725352517692,0.12025426,58962.0,58961.0,0.28150027]
[1725352517897,0.12025426,58962.0,58961.0,0.15225418]
[1725352518199,0.16178776,58962.0,58961.0,0.067844]
[1725352518405,0.23803581,58962.0,58961.0,0.067844]
[1725352518603,0.23804183,58962.0,58961.0,0.067844]
[1725352518812,0.00025426,58962.0,58961.0,0.067844]
[1725352519106,0.11804206,58962.0,58961.0,0.067844]
[1725352519299,0.00025426,58962.0,58961.0,0.067844]
[1725352520105,0.00025426,58962.0,58961.0,0.07255284]
[1725352522205,0.00025426,58962.0,58960.0,0.36172]
[1725352522401,0.00025426,58962.0,58957.0,0.00468643]
[1725352522402,0.04193067,58961.0,58957.0,0.00468643]
[1725352522591,0.23,58958.0,58957.0,0.067849]
[1725352522798,0.43399216,58958.0,58957.0,0.067849]
[1725352522995,0.58515954,58958.0,58957.0,0.067849]
[1725352523394,0.43359208,58958.0,58957.0,0.067849]
[1725352523808,0.38153067,58958.0,58957.0,0.067849]
[1725352525206,0.43359187,58958.0,58957.0,0.067849]
[1725352525507,0.43359219,58958.0,58957.0,0.067849]
[1725352525709,0.38153067,58958.0,58957.0,0.067849]
[1725352525899,0.38153541,58958.0,58957.0,0.067849]
[1725352526204,0.34,58958.0,58957.0,0.067849]
[1725352528303,0.067849,58957.0,58956.0,0.05081722]
[1725352528500,0.067849,58957.0,58954.0,0.06775057]
[1725352528501,0.1304,58957.0,58954.0,0.05081722]
[1725352528700,0.1304,58957.0,58951.0,0.06855057]
[1725352528701,0.659051,58955.0,58951.0,0.0008]
[1725352528900,0.2304,58952.0,58951.0,0.0008]
[1725352529211,0.85888,58952.0,58951.0,0.0008]
[1725352529399,1.59459,58952.0,58951.0,0.0008]
[1725352529701,0.067863,58945.0,58944.0,0.0039]
[1725352529894,1.2916,58945.0,58936.0,0.05471722]
[1725352530104,0.659472,58937.0,58936.0,0.05081722]
[1725352530302,0.659472,58937.0,58935.0,0.05081722]
[1725352530507,0.659472,58937.0,58928.0,0.08441018]
[1725352530508,0.2308,58936.0,58933.0,0.05081722]
[1725352530806,0.2308,58936.0,58926.0,0.3276]
[1725352530807,0.2308,58934.0,58932.0,0.11863658]
[1725352531005,0.23,58934.0,58933.0,0.05075958]
[1725352531516,0.23,58934.0,58924.0,0.05076087]
[1725352531517,0.067882,58929.0,58924.0,0.05076087]
[1725352531703,0.0457,58935.0,58924.0,0.05076087]
[1725352531704,0.2308,58925.0,58924.0,0.067887]
[1725352531905,0.0008,58925.0,58924.0,0.067887]
[1725352532404,0.0008,58925.0,58924.0,0.11864787]
[1725352532721,0.0008,58925.0,58924.0,0.067887]
[1725352534210,0.0008,58925.0,58924.0,1.177007]
[1725352534901,0.00415448,58932.0,58931.0,0.067879]
[1725352535110,0.00025448,58932.0,58931.0,0.297879]
[1725352535307,0.00025448,58932.0,58931.0,0.806959]
[1725352535508,0.00025448,58932.0,58931.0,1.502959]
[1725352535805,0.00025448,58932.0,58931.0,1.55358397]
[1725352536012,0.00025448,58932.0,58931.0,1.863759]
[1725352536212,4.8e-07,58932.0,58931.0,1.931638]
[1725352536715,0.0039,58939.0,58938.0,0.067871]
[1725352537010,0.0039,58946.0,58945.0,0.067863]
[1725352537206,0.0039,58946.0,58938.0,0.5908]
[1725352537207,0.23,58949.0,58946.0,0.067861]
[1725352537601,0.5908,58952.0,58943.0,0.3608]
[1725352537914,0.0008,58944.0,58943.0,2.078665]
[1725352538113,0.0008,58944.0,58943.0,0.428665]
[1725352538614,0.0008,58944.0,58943.0,2.078665]
[1725352538818,0.0008,58944.0,58943.0,2.12926331]
[1725352539009,0.0008,58944.0,58943.0,3.187625]
[1725352539518,0.0008,58944.0,58943.0,3.23821124]
[1725352540204,0.0008,58944.0,58943.0,3.187625]
[1725352542605,0.0008,58944.0,58943.0,2.826825]
[1725352542815,0.0008,58944.0,58943.0,3.187625]
[1725352543817,0.0008,58944.0,58943.0,3.23822506]
[1725352544014,0.0008,58944.0,58943.0,2.587625]
[1725352544220,0.0008,58944.0,58943.0,2.63822485]
[1725352544714,0.0008,58944.0,58943.0,2.63822966]
[1725352546221,0.0008,58944.0,58943.0,0.47926966]
[1725352548820,0.0008,58944.0,58943.0,0.3608]
[1725352548821,0.1108,58944.0,58943.0,0.3608]
[1725352549016,0.1108,58944.0,58942.0,0.00025448]
[1725352549212,0.429465,58943.0,58942.0,0.00025448]
[1725352549415,1.048425,58943.0,58942.0,0.00025448]
[1725352550026,0.4716,58943.0,58942.0,0.00025448]
[1725352550322,0.539465,58943.0,58942.0,0.00025448]
[1725352551211,1.048425,58943.0,58942.0,0.00025448]
[1725352552023,0.539465,58943.0,58942.0,0.00025448]
[1725352552322,1.048425,58943.0,58942.0,0.00025448]
[1725352552726,1.048425,58943.0,58935.0,0.0039]
[1725352552727,0.067873,58936.0,58935.0,0.0039]
[1725352552919,0.067879,58931.0,58926.0,0.0039]
[1725352553124,0.0004,58927.0,58923.0,0.05060466]
[1725352553419,0.23,58928.0,58923.0,0.05060466]
[1725352553621,0.23,58928.0,58927.0,0.0004]
[1725352554113,0.28,58928.0,58927.0,0.0004]
[1725352555032,0.05,58928.0,58927.0,0.0004]
[1725352555219,0.3608,58930.0,58928.0,0.067882]
[1725352555413,0.3608,58930.0,58929.0,0.0004]
[1725352555632,0.3608,58930.0,58929.0,0.068281]
[1725352556014,0.00025448,58933.0,58932.0,0.067878]
[1725352556514,0.00025448,58933.0,58932.0,0.068278]
[1725352557922,0.00025448,58933.0,58932.0,0.11888266]
[1725352558118,0.00025448,58933.0,58932.0,0.577318]
[1725352558525,0.00025448,58933.0,58932.0,2.227318]
[1725352558722,0.00025448,58933.0,58932.0,1.718278]
[1725352561222,0.00025448,58933.0,58932.0,0.068278]
[1725352561426,0.00025448,58933.0,58932.0,0.11897859]
[1725352562024,0.00025448,58933.0,58932.0,0.068278]
[1725352562738,0.23025448,58933.0,58932.0,0.068278]
[1725352563123,0.29813148,58933.0,58932.0,0.0004]
[1725352563624,0.00025448,58933.0,58932.0,0.0004]
[1725352564123,0.36025448,58933.0,58932.0,0.0004]
[1725352564329,0.13025448,58933.0,58932.0,0.0004]
[1725352565032,0.36025448,58933.0,58932.0,0.0004]
[1725352565536,0.42813148,58933.0,58932.0,0.0004]
[1725352565734,0.13025448,58933.0,58932.0,0.0004]
[1725352565931,0.13025448,58933.0,58932.0,0.068278]
[1725352565932,0.00025448,58933.0,58932.0,0.068278]
[1725352567339,0.00025448,58933.0,58932.0,0.298278]
[1725352569427,0.00025448,58933.0,58932.0,1.948278]
[1725352570638,0.00025448,58933.0,58932.0,3.057318]
[1725352571130,0.04180184,58933.0,58932.0,3.057318]
[1725352571332,0.09387864,58933.0,58932.0,3.057318]
[1725352571725,0.09387864,58933.0,58932.0,2.457318]
[1725352572327,0.09387864,58933.0,58932.0,3.057318]
[1725352573833,0.234,58945.0,58932.0,3.057318]
[1725352573834,0.06545133,58948.0,58935.0,0.067874]
[1725352574032,0.00088,58954.0,58947.0,0.2304]
[1725352574233,0.05206551,58953.0,58951.0,0.23]
[1725352574438,0.05206551,58952.0,58948.0,0.23]
[1725352574630,0.05206551,58951.0,58948.0,0.23]
[1725352574834,0.05206551,58950.0,58949.0,0.067858]
[1725352577140,0.05206551,58950.0,58919.0,0.3608]
[1725352577141,0.50892,58949.0,58919.0,0.3608]
[1725352577343,0.50892,58949.0,58928.0,0.067882]
[1725352577344,0.54564634,58933.0,58928.0,0.067882]
[1725352577542,0.11291684,58932.0,58928.0,0.067882]
[1725352577739,0.05206551,58931.0,58928.0,0.067882]
[1725352578043,0.05206551,58930.0,58928.0,0.067882]
[1725352578242,0.3608,58933.0,58928.0,0.067882]
[1725352578846,0.00025448,58935.0,58929.0,0.3608]
[1725352579236,0.00025448,58935.0,58929.0,0.5908]
[1725352580743,0.23,58934.0,58929.0,0.3608]
[1725352580941,0.23,58931.0,58929.0,0.3608]
[1725352585653,0.23,58931.0,58924.0,0.428687]
[1725352585852,0.0004,58928.0,58924.0,0.428687]
[1725352586244,0.0004,58928.0,58924.0,0.47938759]
[1725352586444,0.0004,58928.0,58924.0,0.48030759]
[1725352586847,0.0004,58928.0,58924.0,0.41242059]
[1725352587148,0.0004,58928.0,58925.0,0.23]
[1725352587849,0.0004,58928.0,58926.0,0.067884]
[1725352589058,0.0004,58928.0,58917.0,0.05158059]
[1725352589059,0.496964,58928.0,58917.0,0.05158059]
[1725352589257,0.496964,58928.0,58913.0,0.05070059]